[Event "1000 GM Labor Day Super Swiss 2024"]
[Site "San Jose"]
[Date "2024.09.02"]
[Round "5.8"]
[White "Wu, Derek"]
[Black "Sivakumar, Shaashwath"]
[Result "1/2-1/2"]
[Annotator "TA"]
[ECO "D23"]
[WhiteElo "2278"]
[BlackElo "2321"]
[PlyCount "40"]
[EventDate "2024.08.30"]
[EventType "swiss"]
[EventCountry "USA"]
[SourceTitle "playchess.com"]
[Source "ChessBase"]
[SourceQuality "1"]
[TimeControl "5400+30"]

{[%evp 10,40,12,0,14,12,6,4,12,4,14,7,10,9,7,0,5,10,20,21,26,27,17,14,17,14,19,13,27,21,25,24,37]} 1. d4 {[%emt 0:00:40]} d5 {[%emt 0:00:05]} 2. c4 {[%emt 0:00:09]} c6 {[%emt 0:00:03]} 3. Nf3 {[%emt 0:00:09]} Nf6 {[%emt 0:00:02]} 4. Qc2 {[%emt 0:00:26]} dxc4 {[%emt 0:00:33]} 5. Qxc4 {[%emt 0:00:06]} Bg4 {[%emt 0:00:53]} 6. Nbd2 {[%emt 0:00:12]} e6 {[%emt 0:00:09]} 7. g3 {[%emt 0:00:14]} Nbd7 {[%emt 0:00:04]} 8. Bg2 {[%emt 0:00:08]} Be7 {[%emt 0:02:12] The position is equal.} 9. O-O {[%emt 0:00:10]} O-O {[%emt 0:00:09]} 10. Qb3 {[%emt 0:00:07]} Qb6 {[%emt 0:06:06]} 11. Nc4 {[%emt 0:00:14]} Qa6 {[%emt 0:01:30]} 12. Bd2 {[%emt 0:00:08]} Nb6 {[%emt 0:08:14]} 13. Rfc1 {[%emt 0:00:53]} Rad8 {[%emt 0:02:39]} 14. e3 {[%emt 0:02:08]} Nxc4 {[%emt 0:01:17]} 15. Qxc4 {[%emt 0:02:34]} Qxc4 {[%emt 0:09:39]} 16. Rxc4 {[%emt 0:00:14]} Bxf3 {[%emt 0:01:28]} 17. Bxf3 {[%emt 0:00:09]} Rd7 {[%emt 0:02:29]} 18. Ba5 {[%emt 0:02:21]} Ne8 {[%emt 0:00:39]} 19. Rac1 {[%emt 0:00:54]} Nd6 {[%emt 0:00:06]} 20. R4c2 {[%emt 0:00:19]} Ra8 {[%emt 0:01:07] An uneventful encounter.   Weighted Error Value: White=0.02 (flawless) /Black=0.04 (flawless) .  OK:         	White=7     	Black=7} 1/2-1/2

[Event "1000 GM Labor Day Super Swiss 2024"]
[Site "San Jose"]
[Date "2024.09.02"]
[Round "5.9"]
[White "Sivakumar, Shaaketh"]
[Black "Bansal, Advay"]
[Result "1/2-1/2"]
[Annotator "TA"]
[ECO "A30"]
[WhiteElo "2307"]
[BlackElo "2234"]
[PlyCount "89"]
[EventDate "2024.08.30"]
[EventType "swiss"]
[EventCountry "USA"]
[SourceTitle "playchess.com"]
[Source "ChessBase"]
[SourceQuality "1"]
[TimeControl "5400+30"]

{[%evp 17,89,12,22,5,7,9,21,15,14,19,16,20,20,0,0,0,0,-9,0,-9,-2,-45,3,-34,-21,-27,0,0,36,7,17,0,0,0,0,0,0,0,8,0,4,16,6,6,30,0,0,-2,0,-8,0,0,0,0,102,-20,-8,-61,-53,-141,-138,-160,-129,-137,-31,-33,-34,-49,-8,-8,-8,-8,-8,-9]} 1. Nf3 {[%emt 0:00:26]} c5 {[%emt 0:02:38]} 2. c4 {[%emt 0:01:50]} Nc6 {[%emt 0:00:06]} 3. b3 {[%emt 0:00:10]} Nf6 {[%emt 0:03:56]} 4. Bb2 {[%emt 0:00:05]} e6 {[%emt 0:01:44]} 5. e3 {[%emt 0:01:27]} Be7 {[%emt 0:00:32]} 6. Be2 {[%emt 0:00:48]} O-O {[%emt 0:00:28]} 7. O-O {[%emt 0:00:07]} b6 {[%emt 0:03:21]} 8. d4 {[%emt 0:01:25]} cxd4 {[%emt 0:02:08]} 9. Nxd4 {[%emt 0:01:33]} Bb7 {[%emt 0:07:47]} 10. Bf3 {[%emt 0:01:36]} a6 {[%emt 0:03:39]} 11. Nc3 {[%emt 0:02:42]} Qc7 {[%emt 0:00:09]} 12. Rc1 {[%emt 0:00:28][%cal Oc3d5]} Nxd4 {[%emt 0:02:53]} 13. exd4 {[%emt 0:00:36]} d6 {[%emt 0:02:40]} 14. d5 {[%emt 0:06:26]} e5 {[%emt 0:05:33]} 15. Qd2 {[%emt 0:02:22]} Nd7 {[%emt 0:01:54][%cal Bf6d7,Bd7e5,Be5g4][%mdl 32]} 16. Rce1 {[%emt 0:00:38]} f5 {[%emt 0:01:28]} 17. Bd1 {[%emt 0:00:32]} Rae8 {[%emt 0:09:04]} 18. Bc2 {[%emt 0:00:02]} g6 {[%emt 0:02:00]} 19. f4 {[%emt 0:04:50][%cal Og2g4]} Bf6 {[%emt 0:02:08]} (19... b5 $15 {might be stronger.}) 20. fxe5 {[%emt 0:02:44]} Nxe5 {[%emt 0:00:20][%cal Ob6b5]} 21. Kh1 {[%emt 0:01:40]} Qd8 {[%emt 0:03:47]} 22. Ne2 {[%emt 0:02:07]} Ng4 {[%emt 0:07:16]} 23. Bxf6 {[%emt 0:02:35]} Qxf6 {[%emt 0:00:08]} 24. Nd4 {[%emt 0:00:33]} Bc8 {[%emt 0:02:10] Prevents Ne6.} 25. h3 {[%emt 0:01:30] Strongly threatening Rxe8.} Ne5 {[%emt 0:02:40]} 26. Qf2 {[%emt 0:00:01]} f4 {[%emt 0:01:20]} 27. Be4 {[%emt 0:01:40]} b5 {[%emt 0:03:48]} 28. cxb5 {[%emt 0:03:29]} axb5 {[%emt 0:00:04]} 29. Ne6 {[%emt 0:00:19]} Bxe6 {[%emt 0:00:57]} 30. dxe6 {[%emt 0:00:01]} Qxe6 {[%emt 0:00:15]} 31. Qd2 {[%emt 0:00:26][%cal Oe4d5]} Kg7 {[%emt 0:00:32]} 32. Bc6 {[%emt 0:01:39]} Rc8 {[%emt 0:01:48]} 33. Bd5 {[%emt 0:01:53]} Qf6 {[%emt 0:01:44]} 34. a4 {[%emt 0:01:28]} bxa4 {[%emt 0:02:15]} 35. bxa4 {[%emt 0:00:06]} Qh4 {[%emt 0:00:43] [#]} (35... Rc5 $11 {remains equal.}) 36. Qd4 {[%emt 0:00:42]} (36. a5 $1 $16 {[%cal Ra5a6]}) 36... Qg3 $11 {[%emt 0:02:31][%cal Of4f3] White should prevent ...f3!} 37. Bf3 {[%emt 0:06:57]} ({White should play} 37. Rb1 $11) 37... Kh6 $15 {[%emt 0:02:22] aiming for ...Nxf3. White is weak on the dark squares} 38. Ra1 {[%emt 0:05:05] [#]} (38. Rb1 $15) 38... Rc2 $1 $17 {[%emt 0:01:26] ( -> ...Nxf3)} 39. Qd1 {[%emt 0:01:42]} (39. Qxd6 {leads to mate.} Nxf3 40. Qxf8+ Kh5) 39... Rb2 {[%emt 0:03:19][%cal Oe5d3] ...Nd3! is the strong threat.} 40. Rb1 {[%emt 0:05:10]} Rfb8 {[%emt 0:01:06]} (40... Nxf3 $17 41. Qxf3 Qxf3 42. gxf3 Re2) 41. Rxb2 $15 {[%emt 0:00:51]} Rxb2 {[%emt 0:00:02]} 42. Qd5 {[%emt 0:04:39] Dodges Ra2} Rc2 {[%emt 0:04:41]} 43. a5 {[%emt 0:02:17] The position is equal.} Nxf3 {[%emt 0:02:58]} 44. Qxf3 {[%emt 0:00:09]} Ra2 {[%emt 0:00:54]} 45. Qd5 {[%emt 0:01:09] Weighted Error Value: White=0.16 (very precise) /Black=0.18 (very precise) .  Mistake:       	White=3     	Black=3      Inaccurate:     	White=4     	Black=3      OK:         	White=12    	Black=13     Best:        	---       	Black=2      Strong:       	---       	Black=1} 1/2-1/2

[Event "1000 GM Labor Day Super Swiss 2024"]
[Site "San Jose"]
[Date "2024.09.02"]
[Round "5.10"]
[White "Chinni, Rishabh"]
[Black "Deng, Henry"]
[Result "1/2-1/2"]
[Annotator "TA"]
[ECO "B45"]
[WhiteElo "2220"]
[BlackElo "2338"]
[PlyCount "35"]
[EventDate "2024.08.30"]
[EventType "swiss"]
[EventCountry "USA"]
[SourceTitle "playchess.com"]
[Source "ChessBase"]
[SourceQuality "1"]
[TimeControl "5400+30"]

{[%evp 17,35,78,63,45,35,64,79,51,62,50,50,55,74,0,0,0,0,0,0,0]} 1. e4 {[%emt 0:00:01]} c5 {[%emt 0:01:13]} 2. Nf3 {[%emt 0:00:05][%cal Bg1f3,Bf3d4,Bd4b5,Bb5c7][%mdl 32]} e6 {[%emt 0:00:09]} 3. d4 {[%emt 0:00:07]} cxd4 {[%emt 0:00:07]} 4. Nxd4 {[%emt 0:00:04]} Nf6 {[%emt 0:00:03]} 5. Nc3 {[%emt 0:00:06]} Nc6 {[%emt 0:00:01]} 6. Ndb5 {[%emt 0:00:07]} Bb4 {[%emt 0:00:33]} 7. Bf4 {[%emt 0:01:35]} Nxe4 {[%emt 0:00:09]} 8. Qf3 {[%emt 0:00:07]} d5 {[%emt 0:00:05]} 9. Nc7+ {[%emt 0:00:46]} Kf8 {[%emt 0:00:05][%cal Oe6e5] Threatens to win with ...e5!} 10. Nxa8 {[%emt 0:00:04] Black must now prevent 0-0-0.} e5 {[%emt 0:00:27]} 11. Bd2 {[%emt 0:00:04]} Nd4 {[%emt 0:00:36][%csl LRc2,LRf3] [#]} 12. Qd1 {[%emt 0:00:06] Nxe4 is the strong threat. White is better.} Qh4 {[%emt 0:00:02][%csl Ge4][%cal Rh4f2]} 13. g3 {[%emt 0:00:05]} Qf6 {[%emt 0:00:03][%csl Ge4][%cal Rf6f2]} ({Don't go for} 13... Nxd2 $2 14. gxh4 (14. Bg2 Qh3 $11) 14... N2f3+ 15. Qxf3 Nxf3+ 16. Kd1 $18) 14. Nxe4 {[%emt 0:00:07]} (14. Nxd5 $2 Qxf2#) 14... Nf3+ {[%emt 0:00:03] [#]} 15. Ke2 {[%emt 0:00:08]} (15. Qxf3 $1 $16 Qxf3 16. Bxb4+ Kg8 17. Nd6 Qxh1 18. O-O-O (18. Nc7 $2 Bg4 $17)) 15... Nd4+ $11 {[%emt 0:01:12] The position is equal.} 16. Ke1 {[%emt 0:00:15]} Nf3+ {[%emt 0:04:03]} 17. Ke2 {[%emt 0:00:08]} Nd4+ {[%emt 1:30:09]} 18. Ke1 {[%emt 0:00:57] Weighted Error Value: White=0.13 (very precise) /Black=0.00 (flawless) .  Mistake:       	White=1     	---        OK:         	White=3     	Black=3      Best:        	White=2     	Black=5} 1/2-1/2

[Event "1000 GM Labor Day Super Swiss 2024"]
[Site "San Jose"]
[Date "2024.09.02"]
[Round "5.11"]
[White "Atwell, Rose"]
[Black "Sathish, Pranav"]
[Result "1-0"]
[Annotator "TA"]
[ECO "D02"]
[WhiteElo "2208"]
[BlackElo "2337"]
[PlyCount "73"]
[EventDate "2024.08.30"]
[EventType "swiss"]
[EventCountry "USA"]
[SourceTitle "playchess.com"]
[Source "ChessBase"]
[SourceQuality "1"]
[TimeControl "5400+30"]

{[%evp 9,73,26,33,30,32,23,23,19,17,10,19,7,18,17,19,14,14,6,18,17,39,45,40,35,13,0,0,0,16,15,20,13,18,7,11,12,12,15,81,84,180,154,350,277,375,360,371,367,681,683,765,721,851,798,659,395,350,364,335,342,400,394,572,339,1318,1253]} 1. Nf3 {[%emt 0:00:01]} d5 {[%emt 0:00:16]} 2. g3 {[%emt 0:00:05]} Nd7 {[%emt 0:00:04]} 3. d4 {[%emt 0:00:04]} Nb6 {[%emt 0:00:04]} 4. Nc3 {[%emt 0:00:05]} Nf6 {[%emt 0:00:10]} 5. Bg2 {[%emt 0:00:20]} g6 {[%emt 0:00:28]} 6. O-O {[%emt 0:01:13]} Bg7 {[%emt 0:00:05]} 7. a4 {[%emt 0:00:08]} a5 {[%emt 0:00:05]} 8. b3 {[%emt 0:01:34] White has an edge.} O-O {[%emt 0:00:09]} 9. e3 {[%emt 0:02:17]} c6 {[%emt 0:00:20]} 10. Ba3 {[%emt 0:02:41]} Re8 {[%emt 0:01:13]} 11. Ne2 {[%emt 0:08:51]} Nfd7 {[%emt 0:03:51]} 12. Rc1 {[%emt 0:03:31]} e5 {[%emt 0:01:15]} 13. dxe5 {[%emt 0:01:02]} Nxe5 {[%emt 0:00:02]} 14. Nfd4 {[%emt 0:04:45]} Qc7 {[%emt 0:02:39]} 15. h3 {[%emt 0:03:39]} Bd7 {[%emt 0:03:12]} 16. Bc5 {[%emt 0:07:43]} Rad8 {[%emt 0:05:48]} 17. c3 {[%emt 0:20:48]} Bc8 {[%emt 0:02:04]} 18. Ba3 {[%emt 0:02:33]} Ned7 {[%emt 0:07:16]} 19. Nf4 {[%emt 0:04:08]} Nf6 {[%emt 0:09:03]} 20. Qc2 {[%emt 0:05:27]} Ne4 {[%emt 0:03:23]} 21. Rfd1 {[%emt 0:02:16]} Qe5 {[%emt 0:02:17]} 22. c4 {[%emt 0:02:48]} dxc4 {[%emt 0:12:05][%cal Oe4g3]} 23. bxc4 {[%emt 0:00:14][%cal Od4c6]} c5 {[%emt 0:02:48]} (23... Nxg3 $6 24. Nf3 Rxd1+ 25. Qxd1 $16) (23... Bf6 $11 {remains equal.}) 24. Nb5 $16 {[%emt 0:03:32]} Nxg3 {[%emt 0:08:24]} 25. fxg3 $18 {[%emt 0:03:14] [#] aiming for Kh2.} Bd7 $2 {[%emt 0:01:19] Loses the game.} (25... Qxe3+ $16 26. Kh2 Bf5) 26. Qf2 {[%emt 0:01:35]} (26. Bxb7 Bxb5 (26... Qxe3+ 27. Qf2 $14) 27. axb5 Qxe3+ 28. Kg2 Qxa3 $15) 26... Bxb5 {[%emt 0:06:18]} 27. Rxd8 {[%emt 0:00:30]} ({But not} 27. axb5 Rxd1+ 28. Rxd1 Nxc4 $18) (27. cxb5 Rxd1+ 28. Rxd1 Nxa4 29. Bxb7 Qxe3 $18) 27... Rxd8 {[%emt 0:00:02]} 28. axb5 {[%emt 0:00:40]} ({Not} 28. cxb5 Nxa4 29. Kh2 (29. Bxb7 c4 $18) 29... h5) 28... Nxc4 $2 {[%emt 0:01:04]} (28... Qc7 29. Nd5 Nxd5) 29. Rxc4 {[%emt 0:00:23]} Qa1+ {[%emt 0:00:04]} 30. Bc1 {[%emt 0:02:29]} Rd1+ {[%emt 0:00:08]} 31. Kh2 {[%emt 0:00:06]} Rxc1 {[%emt 0:00:14]} 32. Rxc1 {[%emt 0:00:11]} Qxc1 {[%emt 0:00:02]} 33. Bxb7 {[%emt 0:00:28] [#] And now Bd5 would win.} Qb1 {[%emt 0:00:36]} 34. Qe2 {[%emt 0:04:30]} a4 {[%emt 0:03:26]} 35. Bd5 {[%emt 0:01:01]} Be5 {[%emt 0:01:36]} (35... Qb4 $142 36. Ng2 Kf8) 36. Ba2 {[%emt 0:01:27]} Qc1 {[%emt 0:01:35]} (36... Qb4 37. Nd5 Qa3) 37. Nd3 {[%emt 0:01:39][%csl LRc1,LRe5] Weighted Error Value: White=0.27 (precise) /Black=0.53.  Loses game:     	---       	Black=1      Mistake:       	---       	Black=5      Inaccurate:     	White=1     	Black=1      OK:         	White=11    	Black=8      Best:        	White=1     	Black=1} 1-0

[Event "1000 GM Labor Day Super Swiss 2024"]
[Site "San Jose"]
[Date "2024.09.02"]
[Round "5.12"]
[White "Gongora Montes, Benjamin"]
[Black "Garcia Guerrero, Isaac Antonio"]
[Result "0-1"]
[Annotator "TA"]
[ECO "D03"]
[WhiteElo "2111"]
[BlackElo "2291"]
[PlyCount "56"]
[EventDate "2024.08.30"]
[EventType "swiss"]
[EventCountry "USA"]
[SourceTitle "playchess.com"]
[Source "ChessBase"]
[SourceQuality "1"]
[TimeControl "5400+30"]

{[%evp 9,56,-28,-19,-38,-34,-50,-39,-41,-42,-37,-29,-31,0,-43,-46,-64,-33,-20,0,0,0,0,0,0,0,-370,-379,-381,-384,-388,-381,-388,-366,-369,-382,-369,-322,-517,-502,-510,-507,-512,-482,-561,-561,-1393,-1549,-1525,-1479]} 1. d4 {[%emt 0:00:06]} d5 {[%emt 0:00:12]} 2. Nf3 {[%emt 0:00:08]} Nf6 {[%emt 0:00:20]} 3. Bg5 {[%emt 0:00:16]} Ne4 {[%emt 0:00:20]} 4. Bf4 {[%emt 0:00:07]} c5 {[%emt 0:00:14]} 5. e3 {[%emt 0:00:14]} Qb6 {[%emt 0:00:46]} 6. Nc3 {[%emt 0:00:12]} Qa5 {[%emt 0:00:36]} 7. Bb5+ {[%emt 0:00:47]} Nc6 {[%emt 0:01:14]} 8. O-O {[%emt 0:00:16] Black is slightly better.} Nxc3 {[%emt 0:00:30]} 9. Bxc6+ {[%emt 0:00:10]} bxc6 {[%emt 0:00:12]} 10. bxc3 {[%emt 0:00:10]} f6 {[%emt 0:06:07] Prevents Ne5.} 11. Re1 {[%emt 0:19:10][%cal Oc3c4]} Qxc3 {[%emt 0:05:49]} 12. e4 {[%emt 0:07:35][%cal Be3e4,Be4d5,Bd5c6][%mdl 32] Against Bf5} Bg4 {[%emt 0:06:18] Black is more active.} 13. exd5 {[%emt 0:00:43] [#] Black must now prevent d6.} Bxf3 {[%emt 0:01:29]} 14. gxf3 {[%emt 0:00:16] Threatens to win with d6.} (14. Qxf3 Qxf3 15. gxf3 cxd5 $15) 14... Qxd4 {[%emt 0:11:10]} 15. dxc6 {[%emt 0:00:54][%cal Oa1b1] And now Rb1! would win.} Rc8 $1 {[%emt 0:00:29][%cal Oc8c6]} (15... Qxf4 16. Qd7+ Kf7 17. c7 $18) 16. Qe2 {[%emt 0:01:15]} Qxf4 {[%emt 0:02:24]} 17. Qe6 {[%emt 0:03:13][%mdl 8192]} (17. Rad1 $1 $11 {and White has nothing to worry.} Qf5 (17... Rxc6 $2 18. Qb5 $18) 18. Rd7) 17... Qc7 $19 {[%emt 0:06:35]} 18. Rad1 {[%emt 0:00:12] Threatening mate with Rd7.} Qxc6 {[%emt 0:00:24]} 19. Rd6 {[%emt 0:00:30]} Qc7 {[%emt 0:01:08]} (19... Qxf3 $2 {is the wrong capture.} 20. Rd7 $18 (20. Qxc8+ Kf7 $18) (20. Qxc8+ Kf7 $18)) 20. Red1 {[%emt 0:00:09] [#]} Rb8 $1 {[%emt 0:01:17]} 21. Rd7 {[%emt 0:11:34]} Qe5 {[%emt 0:03:36]} 22. Qc4 {[%emt 0:00:32]} Qf5 {[%emt 0:04:31]} 23. Rxa7 $2 {[%emt 0:43:37]} (23. Kg2 a6 (23... Qxd7 $2 24. Rxd7 Kxd7 25. Qa4+ Kc8 26. Qxa7 $17) 24. a4) 23... Qxf3 {[%emt 0:09:05] Black is clearly winning.} 24. Qa4+ {[%emt 0:02:11]} Kf7 {[%emt 0:00:10]} 25. Qc4+ {[%emt 0:00:05]} Kg6 {[%emt 0:00:27]} 26. Rad7 {[%emt 0:01:33]} Rb4 {[%emt 0:00:56]} 27. Qxc5 {[%emt 0:00:25]} Rg4+ {[%emt 0:01:12]} 28. Kf1 {[%emt 0:00:08]} Qh3+ {[%emt 0:00:13] Weighted Error Value: White=0.62/Black=0.07 (flawless) .  Loses game:     	White=1     	---        Mistake:       	White=1     	---        Inaccurate:     	White=2     	Black=2      OK:         	White=9     	Black=10     Best:        	White=1     	Black=5      Strong:       	---       	Black=2} 0-1

[Event "1000 GM Labor Day Super Swiss 2024"]
[Site "San Jose"]
[Date "2024.09.02"]
[Round "5.13"]
[White "Yim, Sung Ho"]
[Black "Guo, Ethan"]
[Result "1-0"]
[Annotator "TA"]
[ECO "A16"]
[WhiteElo "2291"]
[BlackElo "2211"]
[PlyCount "69"]
[EventDate "2024.08.30"]
[EventType "swiss"]
[EventCountry "USA"]
[SourceTitle "playchess.com"]
[Source "ChessBase"]
[SourceQuality "1"]
[TimeControl "5400+30"]

{[%evp 9,69,41,32,26,43,43,46,83,81,74,101,128,163,164,173,158,164,164,153,158,166,135,128,126,138,128,137,120,112,103,108,121,171,118,137,114,144,64,108,65,141,153,225,144,127,103,84,102,70,121,75,29,165,157,221,230,211,214,241,250,665,489]} 1. Nf3 {[%emt 0:06:10]} Nf6 {[%emt 0:01:36]} 2. c4 {[%emt 0:00:09]} g6 {[%emt 0:00:05]} 3. Nc3 {[%emt 0:00:07]} Bg7 {[%emt 0:00:06]} 4. e4 {[%emt 0:00:20][%cal Be2e4,Be4e5][%mdl 32]} e5 {[%emt 0:00:05]} 5. Nxe5 {[%emt 0:00:32]} O-O {[%emt 0:00:17]} 6. d3 {[%emt 0:00:29][%cal Bd2d3,Bd3d4][%mdl 32]} Re8 {[%emt 0:00:23]} 7. f4 {[%emt 0:00:36]} d6 {[%emt 0:02:46][%cal Bd7d6,Bd6d5][%mdl 32]} 8. Nf3 {[%emt 0:00:09] White is slightly better.} d5 {[%emt 0:01:18]} 9. e5 {[%emt 0:01:01]} dxc4 {[%emt 0:02:14]} 10. d4 {[%emt 0:00:52]} (10. dxc4 Qxd1+ 11. Kxd1 Ng4) 10... Nd5 {[%emt 0:03:19]} 11. Bxc4 {[%emt 0:01:03]} Be6 {[%emt 0:02:57] [#] Hoping for ...Nxc3.} 12. Qb3 {[%emt 0:03:51][%csl LRb7,LRd5]} Nxc3 {[%emt 0:00:48]} 13. Bxe6 {[%emt 0:06:06]} Rxe6 {[%emt 0:00:22]} 14. bxc3 {[%emt 0:00:18][%cal Of3g5] Ng5! would now be deadly.} Rb6 {[%emt 0:00:40]} 15. Qc4 {[%emt 0:05:31]} Rc6 {[%emt 0:01:23]} 16. Qd3 {[%emt 0:04:33]} Qd5 {[%emt 0:00:41] Prevents c4.} 17. O-O {[%emt 0:00:36]} Nd7 {[%emt 0:02:50]} 18. Nd2 {[%emt 0:08:12]} Nb6 {[%emt 0:02:53]} 19. Rf3 {[%emt 0:02:03]} Rd8 {[%emt 0:00:28]} 20. Ne4 {[%emt 0:06:58]} Na4 {[%emt 0:03:13]} (20... Nc4 $16 21. a4 f5) 21. Bd2 {[%emt 0:16:46]} (21. Ba3 $18) 21... b5 $16 {[%emt 0:07:16][%cal Ob5b4]} 22. Rb1 {[%emt 0:01:52]} a6 {[%emt 0:02:01]} 23. Rb3 {[%emt 0:03:52]} (23. Rf2 $16) 23... Rc4 {[%emt 0:06:57][%cal Bc6c4,Bc4d4,Bd4d2][%mdl 32]} 24. Qe2 {[%emt 0:03:36]} Re8 {[%emt 0:07:02]} (24... c5 $14) 25. Re3 {[%emt 0:04:04]} c5 {[%emt 0:04:22]} (25... b4 $16 26. Rxb4 Nb6 27. Rxb6 cxb6) 26. Nd6 {[%emt 0:11:39][%cal Be4d6,Bd6e8,Be8f6][%mdl 32]} cxd4 {[%emt 0:00:09]} 27. cxd4 {[%emt 0:01:09]} ({Don't play} 27. Nxe8 $6 dxe3 28. Qxe3 Re4 $15) 27... Rxd4 {[%emt 0:01:00]} 28. Nxe8 {[%emt 0:01:25]} Rxd2 {[%emt 0:00:22]} 29. Qf3 {[%emt 0:00:32] [#] Strongly threatening Nf6+.} Qd4 {[%emt 0:00:56] aiming for ...Qa1+.} 30. h3 {[%emt 0:04:08]} ({White should try} 30. h4 $16) 30... Nc5 {[%emt 0:00:29] This move loses the game for Black.} (30... Bh6 $1 $11 31. Nf6+ Kg7) 31. Rb1 $18 {[%emt 0:00:49]} Bh6 {[%emt 0:01:11]} (31... Rxa2 $16 {keeps fighting.} 32. Rd1 Ra1 33. Rxa1 Qxa1+ 34. Kh2 Qd4 35. Nxg7 Kxg7) 32. Nf6+ {[%emt 0:00:47]} Kg7 {[%emt 0:00:09]} 33. Rf1 {[%emt 0:00:43]} Nd3 {[%emt 0:03:59][%cal Rh6f4]} 34. Kh1 {[%emt 0:02:13]} Nxf4 $2 {[%emt 0:01:52]} (34... Bxf4 35. Rxd3 Rxd3 36. Qxf4 Qxf4 37. Rxf4 Re3 38. Ne8+ Kg8) 35. Re4 {[%emt 0:00:36] Weighted Error Value: White=0.14 (very precise) /Black=0.42.  Mistake:       	White=3     	Black=6      Inaccurate:     	White=2     	Black=2      OK:         	White=13    	Black=5      Best:        	White=3     	Black=7} 1-0

[Event "1000 GM Labor Day Super Swiss 2024"]
[Site "San Jose"]
[Date "2024.09.02"]
[Round "5.14"]
[White "Yan, Nathan"]
[Black "Guo, Andrew"]
[Result "1/2-1/2"]
[Annotator "TA"]
[ECO "D14"]
[WhiteElo "2160"]
[BlackElo "2207"]
[PlyCount "91"]
[EventDate "2024.08.30"]
[EventType "swiss"]
[EventCountry "USA"]
[SourceTitle "playchess.com"]
[Source "ChessBase"]
[SourceQuality "1"]
[TimeControl "5400+30"]

{[%evp 29,91,0,2,0,0,0,0,0,0,0,0,0,0,0,0,0,0,0,1,0,0,0,0,0,0,0,0,-8,0,0,0,0,0,0,0,0,0,0,0,0,0,0,0,0,0,0,0,0,0,0,0,0,0,0,0,0,0,0,0,0,0,0,0,0]} 1. d4 {[%emt 0:06:01]} d5 {[%emt 0:00:00]} 2. c4 {[%emt 0:00:02]} c6 {[%emt 0:00:05]} 3. cxd5 {[%emt 0:00:39]} cxd5 {[%emt 0:00:00]} 4. Nc3 {[%emt 0:00:34]} Nc6 {[%emt 0:00:08]} 5. Nf3 {[%emt 0:00:20]} Nf6 {[%emt 0:00:02]} 6. Bf4 {[%emt 0:00:15]} Bf5 {[%emt 0:00:05]} 7. e3 {[%emt 0:00:05]} e6 {[%emt 0:00:04]} 8. Bd3 {[%emt 0:00:06]} Bxd3 {[%emt 0:00:00]} 9. Qxd3 {[%emt 0:00:01]} Bd6 {[%emt 0:00:09]} 10. Bxd6 {[%emt 0:00:02]} Qxd6 {[%emt 0:00:00]} 11. O-O {[%emt 1:27:55]} O-O {[%emt 0:00:07]} 12. a3 {[%emt 0:00:00]} a6 {[%emt 0:00:03]} 13. Rac1 {[%emt 0:00:00]} Rac8 {[%emt 0:00:02]} 14. Rc2 {[%emt 0:00:00]} Rc7 {[%emt 0:00:04]} 15. Rfc1 {[%emt 0:00:00]} Rfc8 {[%emt 0:00:04] The position is equal.} 16. Ne2 {[%emt 0:00:00]} Ne7 {[%emt 0:00:05]} 17. Rxc7 {[%emt 0:00:00]} Rxc7 {[%emt 0:00:03]} 18. Rxc7 {[%emt 0:00:00]} Qxc7 {[%emt 0:00:03]} 19. Qc3 {[%emt 0:00:00]} Qxc3 {[%emt 0:00:05]} 20. Nxc3 $11 {[%emt 0:00:00][%mdl 4096] Endgame. KNN-KNN} Nc6 {[%emt 0:00:10]} 21. Kf1 {[%emt 0:00:00]} Kf8 {[%emt 0:00:01]} 22. Ke2 {[%emt 0:00:00]} Ke7 {[%emt 0:00:01]} 23. h3 {[%emt 0:00:00]} h6 {[%emt 0:00:04]} 24. Kd3 {[%emt 0:00:00]} Kd6 {[%emt 0:00:03]} 25. b4 {[%emt 0:00:00]} b5 {[%emt 0:00:05]} 26. Nd2 {[%emt 0:00:00]} Nd7 {[%emt 0:00:23]} 27. f4 {[%emt 0:00:00]} f5 {[%emt 0:00:03]} 28. Nf3 {[%emt 0:00:00]} Nf6 {[%emt 0:00:02]} 29. Ne5 {[%emt 0:00:00]} Ne4 {[%emt 0:00:01]} 30. Nxe4+ {[%emt 0:00:00]} fxe4+ {[%emt 0:00:03]} 31. Ke2 {[%emt 0:00:00]} Nxe5 {[%emt 0:00:02]} 32. fxe5+ {[%emt 0:00:00] KP-KP} Ke7 {[%emt 0:00:04]} 33. Kf2 {[%emt 0:00:00]} g5 {[%emt 0:00:03]} 34. g4 {[%emt 0:00:00]} Kf7 {[%emt 0:00:05]} 35. Kg3 {[%emt 0:00:00]} Kg6 {[%emt 0:00:00]} 36. h4 {[%emt 0:00:00]} Kf7 {[%emt 0:00:00]} 37. hxg5 {[%emt 0:00:00]} hxg5 {[%emt 1:46:41]} 38. Kf2 {[%emt 0:13:30]} Ke7 {[%emt 0:00:00]} 39. Ke2 {[%emt 0:00:00]} Kd7 {[%emt 0:00:00]} 40. Kd2 {[%emt 0:00:00]} Kc6 {[%emt 0:00:00]} 41. Kc3 {[%emt 0:00:00]} Kb6 {[%emt 0:00:00]} 42. Kb3 {[%emt 0:00:00]} a5 {[%emt 0:00:00]} 43. Kc2 {[%emt 0:00:00]} a4 {[%emt 0:00:00]} 44. Kc3 {[%emt 0:00:00]} Kc6 {[%emt 0:00:00]} 45. Kd2 {[%emt 0:00:00]} Kb6 {[%emt 0:00:00]} 46. Kc3 {[%emt 0:00:00] An uneventful encounter.   Weighted Error Value: White=0.00 (flawless) /Black=0.01 (flawless) .  OK:         	White=15    	Black=15} 1/2-1/2